bitfinex-derivatives/quotes_BTCF0:USTF0_20230702
["timestamp","ask_amount","ask_price","bid_price","bid_amount"]
[1688325148505,0.61179754,30559.0,30558.0,0.26813999]
[1688325150817,0.69642213,30559.0,30558.0,0.26813999]
[1688325151902,0.33562213,30559.0,30558.0,0.26813999]
[1688325152514,0.33552213,30559.0,30558.0,0.26763999]
[1688325152815,0.25089754,30559.0,30558.0,0.26763999]
[1688325161317,0.3608,30560.0,30558.0,0.26763999]
[1688325161318,0.11808072,30562.0,30558.0,0.28566968]
[1688325161615,0.00018567,30562.0,30561.0,0.267833]
[1688325161810,0.00018567,30562.0,30561.0,0.28606269]
[1688325162010,0.180369,30564.0,30561.0,0.267833]
[1688325162214,0.180369,30564.0,30563.0,0.266331]
[1688325162417,0.180369,30564.0,30563.0,0.28456069]
[1688325168728,0.428569,30564.0,30563.0,0.266331]
[1688325168917,0.43154896,30564.0,30563.0,0.266331]
[1688325169421,0.45039841,30564.0,30563.0,0.266331]
[1688325169821,0.43154896,30564.0,30563.0,0.266331]
[1688325172222,0.79234896,30564.0,30563.0,0.266331]
[1688325173528,1.11955903,30564.0,30563.0,0.266331]
[1688325173721,1.23745408,30564.0,30563.0,0.266331]
[1688325174322,0.91024401,30564.0,30563.0,0.266331]
[1688325179829,0.79234896,30564.0,30563.0,0.266331]
[1688325180238,0.43154896,30564.0,30563.0,0.266331]
[1688325180929,0.43154896,30564.0,30563.0,0.28456069]
[1688325181338,0.18334896,30564.0,30563.0,0.28456069]
[1688325190432,0.18334896,30564.0,30563.0,0.266331]
[1688325190739,0.18334896,30564.0,30563.0,0.28456069]
[1688325200545,0.18334896,30564.0,30563.0,0.64536069]
[1688325203952,0.18334896,30564.0,30563.0,0.28456069]
[1688325204149,0.51055903,30564.0,30563.0,0.28456069]
[1688325206648,0.26795547,30564.0,30563.0,0.28456069]
[1688325209150,0.59655547,30564.0,30563.0,0.28456069]
[1688325210852,0.51194896,30564.0,30563.0,0.28456069]
[1688325225868,0.59655466,30564.0,30563.0,0.28456069]
[1688325227759,0.92390796,30564.0,30563.0,0.28456069]
[1688325229057,0.59655466,30564.0,30563.0,0.28456069]
[1688325229673,0.92389496,30564.0,30563.0,0.28456069]
[1688325233271,0.83928926,30564.0,30563.0,0.28456069]
[1688325233576,0.51194896,30564.0,30563.0,0.28456069]
[1688325238571,0.51194896,30564.0,30563.0,0.28456069]
[1688325240875,0.59655393,30564.0,30563.0,0.28456069]
[1688325248487,0.51194896,30564.0,30563.0,0.28456069]
[1688325250277,0.51194896,30564.0,30563.0,0.64536069]
[1688325254084,0.51194896,30564.0,30563.0,0.28456069]
[1688325254789,0.51194896,30564.0,30563.0,0.64536069]
[1688325255789,0.5965534,30564.0,30563.0,0.28456069]
[1688325255991,0.5965534,30564.0,30563.0,0.64536069]
[1688325260784,0.5965534,30564.0,30563.0,0.28456069]
[1688325261184,0.5965534,30564.0,30563.0,0.64536069]
[1688325263290,0.51194896,30564.0,30563.0,0.64536069]
[1688325270889,0.59655164,30564.0,30563.0,0.64536069]
[1688325272402,0.59655164,30564.0,30563.0,0.64530069]
[1688325272601,0.59655164,30564.0,30563.0,0.64686069]
[1688325278503,0.51194896,30564.0,30563.0,0.64686069]
[1688325285816,0.51194896,30564.0,30563.0,0.28606069]
[1688325286112,0.51194896,30564.0,30563.0,0.64686069]
[1688325288607,0.51194896,30564.0,30563.0,0.28606069]
[1688325288808,0.51194896,30564.0,30563.0,0.64686069]
[1688325290517,0.51194896,30564.0,30563.0,0.28606069]
[1688325290723,0.51194896,30564.0,30563.0,0.64686069]
[1688325293417,0.59655072,30564.0,30563.0,0.64686069]
[1688325293609,0.92388977,30564.0,30563.0,0.64686069]
[1688325295217,0.59655072,30564.0,30563.0,0.64686069]
[1688325295519,0.92388996,30564.0,30563.0,0.64686069]
[1688325295709,0.59655072,30564.0,30563.0,0.64686069]
[1688325296819,0.9238902,30564.0,30563.0,0.64686069]
[1688325299724,0.9238902,30564.0,30563.0,0.28606069]
[1688325299913,0.9238902,30564.0,30563.0,0.64686069]
[1688325300818,0.83928844,30564.0,30563.0,0.64686069]
[1688325301023,0.51194896,30564.0,30563.0,0.64686069]
[1688325304431,0.18334896,30564.0,30563.0,0.69686069]
[1688325304724,0.67007469,30568.0,30564.0,0.01822969]
[1688325304725,0.11807469,30568.0,30564.0,0.01822969]
[1688325304927,0.00017964,30568.0,30567.0,0.6075]
[1688325305122,0.3025,30572.0,30567.0,0.627129]
[1688325305123,0.06767116,30570.0,30567.0,0.627129]
[1688325305427,0.32733948,30572.0,30570.0,0.019627]
[1688325305610,0.06767032,30571.0,30570.0,0.380427]
[1688325305812,0.3021,30574.0,30573.0,0.019625]
[1688325306020,0.36976362,30574.0,30573.0,0.019625]
[1688325306326,0.36976362,30574.0,30573.0,0.03785469]
[1688325306519,0.06766362,30574.0,30573.0,0.39865469]
[1688325307522,0.34686295,30575.0,30573.0,0.39865469]
[1688325307721,0.06766558,30574.0,30573.0,0.019625]
[1688325307923,0.69629058,30574.0,30573.0,0.019625]
[1688325308128,0.69629058,30574.0,30572.0,0.049064]
[1688325308319,0.33241503,30573.0,30572.0,0.049064]
[1688325308619,0.28437445,30573.0,30572.0,0.049064]
[1688325309218,0.64517445,30573.0,30572.0,0.049064]
[1688325309421,0.65167445,30573.0,30572.0,0.049064]
[1688325310617,0.63204945,30573.0,30572.0,0.00890198]
[1688325310824,0.63204945,30573.0,30572.0,0.049064]
[1688325311430,0.0065,30572.0,30571.0,0.019626]
[1688325311632,0.2468,30571.0,30570.0,0.06590962]
[1688325311929,0.2468,30571.0,30570.0,0.05888962]
[1688325311930,0.6132,30571.0,30570.0,0.05888962]
[1688325312129,0.62554945,30571.0,30570.0,0.05888962]
[1688325312329,0.63270807,30571.0,30570.0,0.05888962]
[1688325312524,0.63270807,30571.0,30570.0,0.30658962]
[1688325313931,0.63270807,30571.0,30570.0,0.05888962]
[1688325315135,0.93914147,30571.0,30570.0,0.05888962]
[1688325315322,0.92029202,30571.0,30570.0,0.05888962]
[1688325315827,1.00488605,30571.0,30570.0,0.05888962]
[1688325316028,1.0237355,30571.0,30570.0,0.05888962]
[1688325320033,1.0433625,30571.0,30570.0,0.07488962]
[1688325320438,1.0433625,30571.0,30570.0,0.01600962]
[1688325320743,1.16125755,30571.0,30570.0,0.03563662]
[1688325323327,1.07666352,30571.0,30570.0,0.03563662]
[1688325324032,1.07673012,30571.0,30570.0,0.03563662]
[1688325324434,0.95883507,30571.0,30570.0,0.03563662]
[1688325326034,1.20703507,30571.0,30570.0,0.01600962]
[1688325326240,1.2916385,30571.0,30570.0,1e-08]
[1688325326832,1.40953355,30571.0,30570.0,1e-08]
[1688325329239,1.40953355,30571.0,30567.0,0.02011967]
[1688325329439,0.609,30568.0,30567.0,0.02011967]
[1688325329640,0.628629,30568.0,30567.0,0.02011967]
[1688325329829,0.64233549,30568.0,30567.0,0.02011967]
[1688325330029,0.66118494,30568.0,30567.0,0.02011967]
[1688325330537,0.98958494,30568.0,30567.0,0.02011967]
[1688325331230,0.98308494,30568.0,30567.0,0.02011967]
[1688325332938,0.96345594,30568.0,30567.0,0.02011967]
[1688325334134,0.98308494,30568.0,30567.0,0.02011967]
[1688325335943,1.06768844,30568.0,30567.0,0.02011967]
[1688325338546,0.98308494,30568.0,30567.0,0.02011967]
[1688325339447,0.96345594,30568.0,30567.0,0.02011967]
[1688325343450,0.98308494,30568.0,30567.0,0.02011967]
[1688325345855,1.06768799,30568.0,30567.0,0.02011967]
[1688325347148,1.06768799,30568.0,30567.0,0.00049067]
[1688325347352,0.01884945,30567.0,30564.0,0.058891]
[1688325347657,0.6069,30565.0,30564.0,0.058891]
[1688325347953,0.64537945,30565.0,30564.0,0.058891]
[1688325348149,0.97728462,30565.0,30564.0,0.058891]
[1688325349845,0.97728462,30565.0,30563.0,0.019631]
[1688325350049,0.26474945,30564.0,30563.0,0.019631]
[1688325350350,0.29158522,30564.0,30563.0,0.019631]
[1688325351351,0.65238522,30564.0,30562.0,0.019632]
[1688325351555,0.28458145,30563.0,30562.0,0.019632]
[1688325353163,0.29108145,30563.0,30561.0,0.00049076]
[1688325353357,0.4929,30561.0,30559.0,0.01364476]
[1688325353664,0.627534,30560.0,30559.0,0.01364476]
[1688325353865,0.64638345,30560.0,30559.0,0.01364476]
[1688325358761,0.64638345,30560.0,30557.0,0.019635]
[1688325358957,0.2482,30558.0,30557.0,0.019635]
[1688325359163,0.267835,30558.0,30557.0,0.019635]
[1688325359466,0.28668445,30558.0,30557.0,0.019635]
[1688325360262,0.61608445,30558.0,30557.0,0.019635]
[1688325361662,0.61608445,30558.0,30556.0,0.31349085]
[1688325361971,0.64538545,30557.0,30556.0,0.33312685]
[1688325362465,0.64538545,30557.0,30556.0,0.35212685]
[1688325362667,0.64538545,30557.0,30556.0,0.37112685]
[1688325362862,0.64538545,30557.0,30556.0,0.33312685]
[1688325363270,1.00618545,30557.0,30556.0,0.35212685]
[1688325363870,1.00618545,30557.0,30556.0,0.37112685]
[1688325364280,1.00618545,30557.0,30556.0,0.35149085]
[1688325365472,1.00618545,30557.0,30556.0,0.37112685]
[1688325373477,1.00618545,30557.0,30556.0,0.03849085]
[1688325373779,1.07041771,30557.0,30556.0,0.03849085]
[1688325374780,1.18831276,30557.0,30556.0,0.03849085]
[1688325375175,1.18831276,30557.0,30556.0,0.03842425]
[1688325382887,1.18831276,30557.0,30556.0,0.05806025]
[1688325383185,1.1240805,30557.0,30556.0,0.05806025]
[1688325384577,1.00618545,30557.0,30556.0,0.05806025]
[1688325386286,1.00618545,30557.0,30556.0,0.36416025]
[1688325388889,0.28458545,30557.0,30556.0,0.36416025]
[1688325389082,0.64538545,30557.0,30556.0,0.36416025]
[1688325390182,0.626536,30557.0,30556.0,0.36416025]
[1688325390383,0.6069,30557.0,30556.0,0.36416025]
[1688325390582,0.2461,30557.0,30556.0,0.61236025]
[1688325391083,0.2461,30557.0,30556.0,0.63058994]
[1688325391878,0.609,30560.0,30556.0,0.63058994]
[1688325392093,0.609,30560.0,30559.0,0.2477]
[1688325392292,0.609,30560.0,30559.0,0.267334]
[1688325392476,0.609,30560.0,30559.0,0.28556369]
[1688325394693,0.609,30560.0,30559.0,0.267334]
[1688325395898,0.609,30560.0,30559.0,0.28556369]
[1688325396993,0.609,30560.0,30559.0,0.267334]
[1688325397591,0.609,30560.0,30559.0,0.28556369]
[1688325397795,0.609,30560.0,30559.0,0.267334]
[1688325399091,0.609,30560.0,30559.0,0.28556369]
[1688325400697,0.609,30560.0,30559.0,0.267334]
[1688325401700,0.609,30560.0,30559.0,0.28556369]
[1688325402498,0.609,30560.0,30559.0,0.28606369]
[1688325403098,0.609,30560.0,30559.0,0.267834]
[1688325405204,0.609,30560.0,30559.0,0.597634]
[1688325405401,0.62784945,30560.0,30559.0,0.597634]
[1688325407692,0.64748345,30560.0,30559.0,0.597634]
[1688325410004,0.28668345,30560.0,30559.0,0.597634]
[1688325410303,0.628634,30560.0,30559.0,0.597634]
[1688325410990,0.267834,30560.0,30559.0,0.597634]
[1688325411402,0.267834,30560.0,30559.0,0.61586369]
[1688325411603,0.628634,30560.0,30559.0,0.597634]
[1688325412499,0.628634,30560.0,30559.0,0.349434]
[1688325412906,0.267834,30560.0,30559.0,0.349434]
[1688325413094,0.628634,30560.0,30559.0,0.349434]
[1688325413807,0.267834,30560.0,30559.0,0.349434]
[1688325413991,0.628634,30560.0,30559.0,0.349434]
[1688325420307,0.64748345,30560.0,30559.0,0.349434]
[1688325426009,0.28668345,30560.0,30559.0,0.349434]
[1688325426302,0.64748345,30560.0,30559.0,0.349434]
[1688325427911,0.64748345,30560.0,30557.0,0.049087]
[1688325428103,0.265735,30558.0,30557.0,0.049087]
[1688325428305,0.28458445,30558.0,30557.0,0.049087]
[1688325433210,0.28458445,30558.0,30557.0,0.048907]
[1688325434711,0.26494945,30558.0,30557.0,0.048907]
[1688325439007,0.62574945,30558.0,30557.0,0.048907]
[1688325439512,0.26494945,30558.0,30557.0,0.048907]
[1688325439704,0.62574945,30558.0,30557.0,0.048907]
[1688325441815,0.64538445,30558.0,30557.0,0.048907]
[1688325442717,0.64538445,30558.0,30556.0,0.02006025]
[1688325442718,0.64538445,30558.0,30556.0,0.00042425]
[1688325442914,0.26494945,30557.0,30556.0,0.00042425]
[1688325443219,0.36921384,30557.0,30556.0,0.00042425]
[1688325443515,0.28458545,30557.0,30556.0,0.00042425]
[1688325443813,0.28458545,30557.0,30556.0,0.01942425]
[1688325444017,0.28458545,30557.0,30556.0,0.03842425]
[1688325447519,0.28458545,30557.0,30556.0,0.05806025]
[1688325452137,0.28458545,30557.0,30556.0,0.03842425]
[1688325452531,0.31028564,30557.0,30556.0,0.03842425]
[1688325457844,0.31028564,30557.0,30556.0,0.05806025]
[1688325458534,0.39492203,30557.0,30556.0,0.05806025]
[1688325458939,0.39491863,30557.0,30556.0,0.05806025]
[1688325459145,0.31028564,30557.0,30556.0,0.05806025]
[1688325459838,0.39491817,30557.0,30556.0,0.05806025]
[1688325460648,0.3949184,30557.0,30556.0,0.05806025]
[1688325461147,0.7557184,30557.0,30556.0,0.05806025]
[1688325461747,0.67108564,30557.0,30556.0,0.05806025]
[1688325462041,0.75571855,30557.0,30556.0,0.05806025]
[1688325464452,0.39491855,30557.0,30556.0,0.05806025]
[1688325464653,1.11651855,30557.0,30556.0,0.05806025]
[1688325465843,1.03188564,30557.0,30556.0,0.05806025]
[1688325466847,0.31028564,30557.0,30556.0,0.05806025]
[1688325467045,1.03188564,30557.0,30556.0,0.05806025]
[1688325473556,1.11651989,30557.0,30556.0,0.05806025]
[1688325474058,1.09767044,30557.0,30556.0,0.05806025]
[1688325475456,1.11651989,30557.0,30556.0,0.05806025]
[1688325476756,0.75571989,30557.0,30556.0,0.05806025]
[1688325480953,0.67108564,30557.0,30556.0,0.05806025]
[1688325482958,0.31028564,30557.0,30556.0,0.05806025]
[1688325483157,0.67108564,30557.0,30556.0,0.05806025]
[1688325484758,0.67108564,30557.0,30556.0,0.03906025]
[1688325484958,0.67108564,30557.0,30556.0,0.02006025]
[1688325487560,0.75572134,30557.0,30556.0,0.02006025]
[1688325501880,0.75572134,30557.0,30556.0,0.00042425]
[1688325502984,0.39492134,30557.0,30556.0,0.00042425]
[1688325503182,1.11652134,30557.0,30556.0,0.00042425]
[1688325503680,1.11652134,30557.0,30556.0,0.02006025]
[1688325506879,0.39492134,30557.0,30556.0,0.02006025]
[1688325507180,1.11652134,30557.0,30556.0,0.02006025]
[1688325510985,0.39492134,30557.0,30556.0,0.02006025]
[1688325511285,1.11652134,30557.0,30556.0,0.02006025]
[1688325511786,0.39492134,30557.0,30556.0,0.02006025]
[1688325511987,1.11652134,30557.0,30556.0,0.02006025]
[1688325513476,0.39492134,30557.0,30556.0,0.02006025]
[1688325513681,1.11652134,30557.0,30556.0,0.02006025]
[1688325514888,0.39492134,30557.0,30556.0,0.02006025]
[1688325515078,1.11652134,30557.0,30556.0,0.02006025]
[1688325517092,0.39492134,30557.0,30556.0,0.02006025]
[1688325517292,1.11652134,30557.0,30556.0,0.02006025]
[1688325517885,1.09767189,30557.0,30556.0,0.02006025]
[1688325519889,0.37607189,30557.0,30556.0,0.02006025]
[1688325520089,1.09767189,30557.0,30556.0,0.02006025]
[1688325520294,1.11652134,30557.0,30556.0,0.02006025]
[1688325520996,1.07803589,30557.0,30556.0,0.02006025]
[1688325521189,1.09767189,30557.0,30556.0,0.02006025]
[1688325521898,1.0544357,30557.0,30556.0,0.26826025]
[1688325522084,0.609,30557.0,30556.0,0.26826025]
[1688325522284,0.609,30557.0,30556.0,0.28648994]
[1688325522696,0.609,30557.0,30556.0,0.30548994]
[1688325523195,0.609,30557.0,30556.0,0.32448994]
[1688325525102,0.3608,30557.0,30556.0,0.32448994]
[1688325526092,0.44543181,30557.0,30556.0,0.32448994]
[1688325526691,0.46506781,30557.0,30556.0,0.32448994]
[1688325527096,0.46506781,30557.0,30556.0,0.30626025]
[1688325528202,0.46506781,30557.0,30556.0,0.28726025]
[1688325528391,0.46506781,30557.0,30556.0,0.28648994]
[1688325532410,0.46506781,30557.0,30556.0,0.26826025]
[1688325532605,0.71326781,30557.0,30556.0,0.28648994]
[1688325536511,0.71326781,30557.0,30556.0,0.26826025]
[1688325537402,0.71326781,30557.0,30556.0,0.28648994]
[1688325537915,0.35246781,30557.0,30556.0,0.28648994]
[1688325538207,0.71326781,30557.0,30556.0,0.28648994]
[1688325538609,0.71326781,30557.0,30556.0,0.26826025]
[1688325538814,0.71326781,30557.0,30556.0,0.28648994]
[1688325539913,0.71326781,30557.0,30556.0,0.26826025]
[1688325540602,0.71326781,30557.0,30556.0,0.28648994]
[1688325541012,0.71326781,30557.0,30556.0,0.26826025]
[1688325541213,0.71326781,30557.0,30556.0,0.28648994]
[1688325542208,0.71326781,30557.0,30556.0,0.26826025]
[1688325543009,0.71326781,30557.0,30556.0,0.28648994]
[1688325543409,0.71326781,30557.0,30556.0,0.26826025]
[1688325544214,0.71326781,30557.0,30556.0,0.28648994]
[1688325544403,0.69363181,30557.0,30556.0,0.28648994]
[1688325545618,0.08463181,30557.0,30556.0,0.32448994]
[1688325547215,0.63545004,30560.0,30556.0,0.32448994]
[1688325547512,0.08462593,30559.0,30556.0,0.05806025]
[1688325547721,0.08462593,30558.0,30557.0,0.33622969]
[1688325547915,0.08462593,30559.0,30557.0,0.60356469]
[1688325548115,0.08462593,30559.0,30558.0,0.2482]
[1688325548415,0.08462593,30559.0,30558.0,0.28606469]
[1688325548621,0.63545004,30560.0,30558.0,0.30506469]
[1688325548809,0.63545004,30560.0,30559.0,0.2477]
[1688325549104,0.72007603,30560.0,30559.0,0.267334]
[1688325549308,0.63545004,30560.0,30559.0,0.267334]
[1688325549622,0.63545004,30560.0,30559.0,0.28556369]
[1688325549826,0.63545004,30560.0,30559.0,0.267334]
[1688325550421,0.63545004,30560.0,30559.0,0.305334]
[1688325551424,0.65508404,30560.0,30559.0,0.305334]
[1688325551911,0.73971042,30560.0,30559.0,0.286334]
[1688325552420,0.73971042,30560.0,30559.0,0.267334]
[1688325552621,0.73871042,30560.0,30559.0,0.267134]
[1688325557434,0.65408404,30560.0,30559.0,0.28536369]
[1688325557614,0.65408404,30560.0,30559.0,0.267134]
[1688325558627,0.65408404,30560.0,30559.0,0.28536369]
[1688325558924,0.65408404,30560.0,30559.0,0.30436369]
[1688325559224,0.65408404,30560.0,30559.0,0.286134]
[1688325559426,0.65408404,30560.0,30559.0,0.305134]
[1688325560227,0.65408404,30560.0,30559.0,0.32336369]
[1688325560526,0.65408404,30560.0,30559.0,0.305134]
[1688325561928,0.65408404,30560.0,30559.0,0.286134]
[1688325562131,0.65408404,30560.0,30559.0,0.267134]
[1688325562624,0.65408404,30560.0,30559.0,0.267834]
[1688325563521,0.73871204,30560.0,30559.0,0.267834]
[1688325571231,0.75756291,30560.0,30559.0,0.267834]
[1688325571421,0.67293349,30560.0,30559.0,0.267834]
[1688325571733,0.65408404,30560.0,30559.0,0.267834]
[1688325572128,0.73871383,30560.0,30559.0,0.267834]
[1688325572633,0.73871383,30560.0,30559.0,0.019634]
[1688325575025,0.75756328,30560.0,30559.0,0.019634]
[1688325576034,0.39676328,30560.0,30559.0,0.019634]
[1688325576232,0.75756328,30560.0,30559.0,0.019634]
[1688325576735,0.87545833,30560.0,30559.0,0.019634]
[1688325586533,0.51465833,30560.0,30559.0,0.019634]
[1688325586733,1.23625833,30560.0,30559.0,0.019634]
[1688325596147,0.51465833,30560.0,30559.0,0.019634]
[1688325596354,1.23625833,30560.0,30559.0,0.019634]
[1688325600657,1.21740888,30560.0,30559.0,0.019634]
[1688325602164,1.19777488,30560.0,30559.0,0.019634]
[1688325602341,1.07987983,30560.0,30559.0,0.019634]
[1688325602544,1.07987983,30560.0,30559.0,0.267134]
[1688325603057,0.71907983,30560.0,30559.0,0.28536369]
[1688325605962,0.72182045,30560.0,30559.0,0.28536369]
[1688325606458,0.72182045,30560.0,30559.0,0.30436369]
[1688325606957,0.72182045,30560.0,30559.0,0.32336369]
[1688325607549,0.72182045,30560.0,30559.0,0.305134]
[1688325607749,0.72182045,30560.0,30559.0,0.32336369]
[1688325609961,0.71907983,30560.0,30559.0,0.32336369]
[1688325611563,0.35827983,30560.0,30559.0,0.32336369]
[1688325611751,0.71907983,30560.0,30559.0,0.32336369]
[1688325612153,0.71907983,30560.0,30559.0,0.33168779]
[1688325612858,0.35827983,30560.0,30559.0,0.33168779]
[1688325613158,0.71907983,30560.0,30559.0,0.33168779]
[1688325613862,0.71907983,30560.0,30559.0,0.34991748]
[1688325614762,0.71907983,30560.0,30559.0,0.33168779]
[1688325615362,0.71907983,30560.0,30559.0,0.08418779]
[1688325616762,0.71907983,30560.0,30559.0,0.10241748]
[1688325617065,0.71907983,30560.0,30559.0,0.08418779]
[1688325617456,0.71907983,30560.0,30559.0,0.10241748]
[1688325618160,0.71907983,30560.0,30559.0,0.08418779]
[1688325618353,0.71907983,30560.0,30559.0,0.10241748]
[1688325619866,0.35827983,30560.0,30559.0,0.10241748]
[1688325620066,0.71907983,30560.0,30559.0,0.08418779]
[1688325622555,0.35827983,30560.0,30559.0,0.08418779]
[1688325622755,0.71907983,30560.0,30559.0,0.08418779]
[1688325624158,0.63445004,30560.0,30559.0,0.08418779]
[1688325624359,0.71907408,30560.0,30559.0,0.08418779]
[1688325624559,0.63445004,30560.0,30559.0,0.08418779]
[1688325624865,0.63445004,30560.0,30559.0,0.10241748]
[1688325625070,0.63445004,30560.0,30559.0,0.08418779]
[1688325625269,0.71907407,30560.0,30559.0,0.08418779]
[1688325625958,0.35827405,30560.0,30559.0,0.08418779]
[1688325626159,0.71907405,30560.0,30559.0,0.08418779]
[1688325627064,0.35827405,30560.0,30559.0,0.08418779]
[1688325627265,0.71907405,30560.0,30559.0,0.08418779]
[1688325628773,0.73870705,30560.0,30559.0,0.08418779]
[1688325629161,0.7575565,30560.0,30559.0,0.08418779]
[1688325629358,0.7575565,30560.0,30559.0,0.06518779]
[1688325629864,1.0899565,30560.0,30559.0,0.06518779]
[1688325630380,1.0899565,30560.0,30559.0,0.04618779]
[1688325631977,0.7291565,30560.0,30559.0,0.04618779]
[1688325632171,1.0899565,30560.0,30559.0,0.04618779]
[1688325634580,1.07110705,30560.0,30559.0,0.04618779]
[1688325639193,1.0899565,30560.0,30559.0,0.04618779]
[1688325642091,1.07110705,30560.0,30559.0,0.06441748]
[1688325642292,1.07110705,30560.0,30559.0,0.04618779]
[1688325646590,1.05147405,30560.0,30559.0,0.04618779]
[1688325649290,1.0703235,30560.0,30559.0,0.04618779]
[1688325650496,1.0899565,30560.0,30559.0,0.04618779]
[1688325654705,1.07110705,30560.0,30559.0,0.04618779]
[1688325655194,0.71030705,30560.0,30559.0,0.04618779]
[1688325655594,1.07110705,30560.0,30559.0,0.04618779]
[1688325655797,1.0899565,30560.0,30559.0,0.04618779]
[1688325655995,0.7291565,30560.0,30559.0,0.04618779]
[1688325656293,1.0899565,30560.0,30559.0,0.04618779]
[1688325658496,0.7291565,30560.0,30559.0,0.04618779]
[1688325658701,1.0899565,30560.0,30559.0,0.04618779]
[1688325658996,0.7291565,30560.0,30559.0,0.04618779]
[1688325659204,1.0899565,30560.0,30559.0,0.04618779]
[1688325662910,1.20785155,30560.0,30559.0,0.04618779]
[1688325663116,1.1890021,30560.0,30559.0,0.04618779]
[1688325664109,1.07110705,30560.0,30559.0,0.04618779]
[1688325666213,0.98648304,30560.0,30559.0,0.04618779]
[1688325669712,1.00533249,30560.0,30559.0,0.04618779]
[1688325672205,0.96685004,30560.0,30559.0,0.04618779]
[1688325672605,0.96685004,30560.0,30559.0,0.06441748]
[1688325672912,0.96685004,30560.0,30559.0,0.04618779]
[1688325673714,0.98648304,30560.0,30559.0,0.04618779]
[1688325675006,0.62568304,30560.0,30559.0,0.04618779]
[1688325675207,0.98648304,30560.0,30559.0,0.04618779]
[1688325676009,1.00533249,30560.0,30559.0,0.04618779]
[1688325677308,0.98648304,30560.0,30559.0,0.04618779]
[1688325677610,0.98648304,30560.0,30559.0,0.1118931]
[1688325677813,0.98648304,30560.0,30559.0,0.019634]
[1688325679116,0.98648304,30560.0,30559.0,0.03786369]
[1688325679821,0.98648304,30560.0,30559.0,0.019634]
[1688325682509,0.63445004,30560.0,30559.0,0.03786369]
[1688325682814,0.00049085,30562.0,30560.0,0.2482]
[1688325683016,0.11789505,30564.0,30561.0,0.94936269]
[1688325683310,0.11789505,30564.0,30563.0,0.266332]
[1688325683311,0.36399505,30564.0,30563.0,0.266332]
[1688325683906,0.36399505,30564.0,30563.0,0.28456169]
[1688325684213,0.2461,30564.0,30563.0,0.28456169]
[1688325689025,0.25246214,30564.0,30563.0,0.28456169]
[1688325691235,0.3370732,30564.0,30563.0,0.28456169]
[1688325697624,0.3370732,30564.0,30563.0,0.31140114]
[1688325698628,0.25246214,30564.0,30563.0,0.31140114]
[1688325701723,0.27131159,30564.0,30563.0,0.31140114]
[1688325702640,0.25246214,30564.0,30563.0,0.31140114]
[1688325705840,0.00636214,30564.0,30563.0,0.31140114]
[1688325706243,0.33305783,30564.0,30563.0,0.31140114]
[1688325713752,0.00636214,30564.0,30563.0,0.31140114]
[1688325723942,0.02521159,30564.0,30563.0,0.28456169]
[1688325724654,0.00636214,30564.0,30563.0,0.28456169]
[1688325727457,0.65465783,30564.0,30563.0,0.28456169]
[1688325728553,0.73926834,30564.0,30563.0,0.28456169]
[1688325728856,0.41257265,30564.0,30563.0,0.28456169]
[1688325733066,0.41257265,30564.0,30563.0,0.59426169]
[1688325736159,0.65534313,30564.0,30563.0,0.59426169]
[1688325740270,0.65534313,30564.0,30563.0,0.576032]
[1688325743776,0.41257311,30564.0,30563.0,0.576032]
[1688325744371,0.41257311,30564.0,30563.0,0.59426169]
[1688325746978,0.41257311,30564.0,30563.0,0.576032]
[1688325747676,0.41257311,30564.0,30563.0,0.59426169]
[1688325751075,0.32796214,30564.0,30563.0,0.59426169]
[1688325751275,0.65533343,30564.0,30563.0,0.59426169]
[1688325753584,0.32796214,30564.0,30563.0,0.59426169]
[1688325753779,0.65533343,30564.0,30563.0,0.59426169]
[1688325754576,0.32796214,30564.0,30563.0,0.59426169]
[1688325758783,0.00636214,30564.0,30563.0,0.59426169]
[1688325758978,0.36129078,30567.0,30563.0,0.59426169]
[1688325759288,0.09096324,30566.0,30564.0,0.0726252]
[1688325759482,0.00635577,30566.0,30565.0,0.26633]
[1688325759688,0.09096326,30566.0,30565.0,0.26633]
[1688325759985,0.00635577,30566.0,30565.0,0.28455969]
[1688325825244,0.00635577,30566.0,30565.0,0.28435989]
[1688325835653,0.09096098,30566.0,30565.0,0.28435989]
[1688325840062,0.09096098,30566.0,30565.0,0.28416009]
[1688325845167,0.09096098,30566.0,30565.0,0.60036009]
[1688325845464,0.00635577,30566.0,30565.0,0.60036009]
[1688325855277,0.00635577,30566.0,30565.0,0.60016029]
[1688325856074,0.25335577,30566.0,30565.0,0.60016029]
[1688325870103,0.25328917,30566.0,30565.0,0.60002709]
[1688325874106,0.25328917,30566.0,30565.0,0.5817974]
[1688325874302,0.25328917,30566.0,30565.0,0.60002709]
[1688325885610,0.25308937,30566.0,30565.0,0.59982729]
[1688325892618,0.25218937,30566.0,30565.0,0.59982729]
[1688325900121,0.25205617,30566.0,30565.0,0.59969409]
[1688325912633,0.00595617,30566.0,30565.0,0.59969409]
[1688325915433,0.00582297,30566.0,30565.0,0.59956089]
[1688325930174,0.00562317,30566.0,30565.0,0.59949429]
[1688325930958,0.09022581,30566.0,30565.0,0.59949429]
[1688325933160,0.00562317,30566.0,30565.0,0.59949429]
[1688325945074,0.00555657,30566.0,30565.0,0.59936109]
[1688325960079,0.00555657,30566.0,30565.0,0.59929449]
[1688325969082,0.33295481,30566.0,30565.0,0.59929449]
[1688325975188,0.33288821,30566.0,30565.0,0.59922789]
[1688325976586,0.00548997,30566.0,30565.0,0.59922789]
[1688325990198,0.00542337,30566.0,30565.0,0.59916129]
[1688325991491,0.33281052,30566.0,30565.0,0.59916129]
[1688325992595,0.58101052,30566.0,30565.0,0.59916129]
[1688325995598,0.25362337,30566.0,30565.0,0.59916129]
[1688326002606,0.00542337,30566.0,30565.0,0.59916129]
[1688326005305,0.00535677,30566.0,30565.0,0.59909469]
[1688326006498,0.33274719,30566.0,30565.0,0.59909469]
[1688326012721,0.58094719,30566.0,30565.0,0.59909469]
[1688326014012,0.66554941,30566.0,30565.0,0.59909469]
[1688326014212,0.33815899,30566.0,30565.0,0.59909469]
[1688326018615,0.25355677,30566.0,30565.0,0.59909469]
[1688326020120,0.25349017,30566.0,30565.0,0.59902809]
[1688326021497,0.58086659,30566.0,30565.0,0.59902809]
[1688326026619,0.25349017,30566.0,30565.0,0.59902809]
[1688326028197,0.11789505,30569.0,30566.0,0.01822969]
[1688326028429,0.8643,30574.0,30566.0,0.01822969]
[1688326028430,0.11789505,30573.0,30568.0,0.609]
[1688326028631,0.36609505,30573.0,30572.0,0.6085]
[1688326028920,0.27014907,30573.0,30572.0,0.628126]
[1688326029120,0.27014907,30573.0,30572.0,0.64635569]
[1688326029317,0.0676684,30573.0,30572.0,0.64635569]
[1688326029736,0.01649064,30576.0,30572.0,0.64635569]
[1688326029925,0.06766219,30575.0,30573.0,0.01822969]
[1688326030170,0.01649064,30576.0,30574.0,0.267324]
[1688326030318,0.01649064,30576.0,30575.0,0.2482]